fUSD/lending_fUSD_20241207
["ID","MTS","AMOUNT","RATE_DAILY","PERIOD"]
[344571377,1733555446523,-500.0,0.00022999,2]
[344571378,1733555446532,-500.0,0.00022999,2]
[344571379,1733555446541,-500.0,0.00022999,2]
[344571381,1733555446551,-1474.42,0.00022999,2]
[344571383,1733555446561,-500.0,0.00022999,2]
[344571384,1733555446570,-500.0,0.00022999,2]
[344571385,1733555446580,-500.0,0.00022999,2]
[344571386,1733555446590,-3114.94,0.00022999,2]
[344571388,1733555446599,-1254.36,0.00022999,2]
[344571389,1733555446609,-500.0,0.00022999,2]
[344571390,1733555446618,-375.81389653,0.00022999,2]
[344571391,1733555446628,-500.0,0.00022999,2]
[344571392,1733555446638,-998.26,0.00022999,2]
[344571393,1733555446648,-5488.69,0.00022999,2]
[344571395,1733555446657,-579.87,0.00022999,2]
[344571396,1733555446667,-534.74,0.00022999,2]
[344571397,1733555446676,-500.0,0.00022999,2]
[344571398,1733555446685,-500.0,0.00022999,2]
[344571399,1733555446695,-500.0,0.00022999,2]
[344571400,1733555446705,-1058.81,0.00022999,2]
[344571401,1733555446714,-125093.12804059,0.00023,2]
[344571402,1733555446836,-3979.80000001,0.00023,2]
[344571403,1733555446851,-150.0,0.0002,2]
[344571404,1733555446861,-22790.1322399,0.00023,2]
[344571417,1733555999884,2220.45,5.01e-05,2]
[344571419,1733556503521,3076698.21426188,0.0002,120]
[344571420,1733556503560,14000000.0,0.0002,120]
[344571429,1733556631797,-727.5237665,7e-05,2]
[344571430,1733556631807,-150.0,9.024e-05,2]
[344571431,1733556631817,-1513.43339645,9.8e-05,2]
[344571432,1733556631828,-2901.22842254,9.8e-05,2]
[344571433,1733556631854,-4130.10143949,9.8e-05,2]
[344571434,1733556631867,-14008.27212514,9.8e-05,2]
[344571435,1733556631879,-205.0,9.8e-05,2]
[344571436,1733556631889,-7498.91676738,0.000139,2]
[344571437,1733556631899,-450.0,0.00015,2]
[344571438,1733556631909,-450.0,0.00015,2]
[344571439,1733556631918,-259.78369785,0.00015034,2]
[344571440,1733556631928,-3489.65891416,0.00015034,2]
[344571441,1733556631937,-224.33,0.00015122,2]
[344571442,1733556631947,-224.33,0.00015122,2]
[344571443,1733556631958,-224.33,0.00015123,2]
[344571444,1733556631967,-224.33,0.00015123,2]
[344571445,1733556631978,-224.33,0.00015123,2]
[344571446,1733556631988,-500.0,0.00015131,2]
[344571447,1733556631997,-549.73674272,0.00015131,2]
[344571448,1733556632006,-500.0,0.00015131,2]
[344571449,1733556632016,-500.0,0.00015131,2]
[344571450,1733556632025,-442.27041974,0.00015131,2]
[344571451,1733556632034,-557.06,0.00015131,2]
[344571452,1733556632044,-500.0,0.00015131,2]
[344571453,1733556632053,-500.0,0.00015131,2]
[344571454,1733556632061,-500.0,0.00015131,2]
[344571455,1733556632070,-500.0,0.00015131,2]
[344571456,1733556632080,-275.33,0.00015131,2]
[344571457,1733556632090,-500.0,0.00015131,2]
[344571458,1733556632099,-343.87675859,0.00015131,2]
[344571459,1733556632142,-156.12324141,0.00015131,2]
[344571460,1733556632151,-500.0,0.00015131,2]
[344571461,1733556632161,-31.50858947,0.00015131,2]
[344571462,1733556632172,-144.94141053,0.00015131,2]
[344571463,1733556632181,-500.0,0.00015131,2]
[344571464,1733556632190,-500.0,0.00015131,2]
[344571465,1733556632198,-69.58277947,0.00015131,2]
[344571466,1733556632213,-430.41722053,0.00015131,2]
[344571467,1733556632222,-572.28111349,0.00015131,2]
[344571468,1733556632230,-500.0,0.00015131,2]
[344571469,1733556632239,-281.41073443,0.00015132,2]
[344571470,1733556632248,-500.0,0.00015132,2]
[344571471,1733556632257,-500.0,0.00015132,2]
[344571472,1733556632266,-550.0,0.00015132,2]
[344571473,1733556632275,-500.0,0.00015132,2]
[344571474,1733556632284,-500.0,0.00015132,2]
[344571475,1733556632294,-500.0,0.00015132,2]
[344571476,1733556632303,-500.0,0.00015132,2]
[344571477,1733556632312,-500.0,0.00015132,2]
[344571478,1733556632322,-500.0,0.00015132,2]
[344571479,1733556632332,-500.0,0.00015132,2]
[344571480,1733556632342,-374.5258782,0.00015132,2]
[344571482,1733556632351,-500.0,0.00015132,2]
[344571483,1733556632360,-503.82804383,0.00015132,2]
[344571484,1733556632370,-500.0,0.00015132,2]
[344571485,1733556632380,-500.0,0.00015132,2]
[344571486,1733556632389,-500.0,0.00015132,2]
[344571487,1733556632399,-283.37073874,0.00015132,2]
[344571488,1733556637909,-504.38677108,0.00015131,2]
[344571489,1733556637920,-500.0,0.00015131,2]
[344571490,1733556637929,-216.62926126,0.00015132,2]
[344571491,1733556637939,-500.0,0.00015132,2]
[344571492,1733556637948,-500.0,0.00015132,2]
[344571493,1733556637958,-500.0,0.00015132,2]
[344571494,1733556637967,-500.0,0.00015132,2]
[344571495,1733556637977,-534.92136093,0.00015132,2]
[344571496,1733556637986,-258.06260673,0.00015132,2]
[344571497,1733556637998,-55.63854537,0.00015132,2]
[344571498,1733556638007,-597.63664482,0.00015132,2]
[344571499,1733556638016,-439.72667271,0.00015132,2]
[344571500,1733556638025,-2985.15,0.00015132,2]
[344571501,1733556638034,-299.89327898,0.00015132,2]
[344571502,1733556638074,-500.0,0.00015131,2]
[344571503,1733556638083,-2685.25672102,0.00015132,2]
[344571504,1733556638092,-2985.15,0.00015132,2]
[344571505,1733556638101,-2985.15,0.00015132,2]
[344571506,1733556638111,-2985.15,0.00015132,2]
[344571507,1733556638120,-879.65854654,0.00015132,2]
[344571508,1733556638135,-1491.045,0.00015132,2]
[344571517,1733556639814,-1014.69,0.00015131,2]
[344571518,1733556639824,-500.0,0.00015131,2]
[344571519,1733556639833,-1014.69,0.00015131,2]
[344571520,1733556639842,-1014.69,0.00015131,2]
[344571521,1733556639852,-614.44645346,0.00015132,2]
[344571522,1733556639861,-2985.15,0.00015132,2]
[344571523,1733556639871,-2985.15,0.00015132,2]
[344571524,1733556639880,-1737.62353986,0.00015132,2]
[344571525,1733556639892,-399.92651746,0.00015132,2]
[344571526,1733556639903,-847.59994268,0.00015132,2]
[344571527,1733556639912,-198.16435034,0.00015132,2]
[344571528,1733556639928,-348.195,0.00015132,2]
[344571529,1733556639995,-2438.79064966,0.00015132,2]
[344571530,1733556640004,-2985.15,0.00015132,2]
[344571531,1733556640013,-2985.15,0.00015132,2]
[344571532,1733556640023,-2985.15,0.00015132,2]
[344571533,1733556640032,-2985.15,0.00015132,2]
[344571534,1733556640043,-2985.15,0.00015132,2]
[344571535,1733556640052,-2985.15,0.00015132,2]
[344571536,1733556640061,-2985.15,0.00015132,2]
[344571537,1733556640070,-2985.15,0.00015132,2]
[344571538,1733556640079,-2985.15,0.00015132,2]
[344571539,1733556640088,-2985.15,0.00015132,2]
[344571540,1733556640098,-2985.15,0.00015132,2]
[344571541,1733556640107,-2985.15,0.00015132,2]
[344571543,1733556640115,-2985.15,0.00015132,2]
[344571544,1733556640124,-2985.26338821,0.00015132,2]
[344571545,1733556640133,-500.0,0.00015132,2]
[344571546,1733556640142,-500.0,0.00015132,2]
[344571547,1733556640151,-500.0,0.00015132,2]
[344571548,1733556640160,-500.0,0.00015132,2]
[344571549,1733556640172,-1192.49,0.00015132,2]
[344571550,1733556640180,-1192.49,0.00015132,2]
[344571551,1733556640189,-1192.49,0.00015132,2]
[344571552,1733556640198,-1192.49,0.00015132,2]
[344571553,1733556640207,-1192.49,0.00015132,2]
[344571554,1733556640216,-1192.49,0.00015132,2]
[344571555,1733556640225,-1192.49,0.00015132,2]
[344571556,1733556640234,-1192.49,0.00015132,2]
[344571557,1733556640243,-1192.49,0.00015132,2]
[344571558,1733556640252,-1192.49,0.00015132,2]
[344571559,1733556640261,-1192.49,0.00015132,2]
[344571560,1733556640270,-1192.49,0.00015132,2]
[344571561,1733556640279,-1192.49,0.00015132,2]
[344571562,1733556640288,-1192.49,0.00015132,2]
[344571563,1733556640297,-1192.49,0.00015132,2]
[344571564,1733556640306,-1192.49,0.00015132,2]
[344571566,1733556640315,-1192.49,0.00015132,2]
[344571567,1733556640325,-1192.49,0.00015132,2]
[344571568,1733556640335,-1192.49,0.00015132,2]
[344571569,1733556640345,-1192.49,0.00015132,2]
[344571570,1733556640354,-1192.49,0.00015132,2]
[344571571,1733556640364,-1192.49,0.00015132,2]
[344571572,1733556640373,-1192.49,0.00015132,2]
[344571573,1733556640382,-1192.70131542,0.00015132,2]
[344571574,1733556640391,-201.09891751,0.00015132,2]
[344571575,1733556640402,-500.0,0.00015132,2]
[344571576,1733556640433,-243.45,0.00015132,2]
[344571577,1733556640472,-500.0,0.00015132,2]
[344571578,1733556640512,-555.0,0.00015132,2]
[344571579,1733556640548,-500.0,0.00015132,2]
[344571580,1733556640569,-500.0,0.00015132,2]
[344571581,1733556640590,-500.0,0.00015132,2]
[344571582,1733556640613,-500.0,0.00015132,2]
[344571583,1733556640630,-500.0,0.00015132,2]
[344571584,1733556640640,-500.0,0.00015132,2]
[344571585,1733556640649,-306.46,0.00015132,2]
[344571586,1733556640658,-500.0,0.00015132,2]
[344571587,1733556640671,-500.0,0.00015132,2]
[344571588,1733556640687,-253.16,0.00015132,2]
[344571589,1733556640697,-1412.98,0.00015132,2]
[344571590,1733556640706,-1412.98,0.00015132,2]
[344571591,1733556640720,-1412.98,0.00015132,2]
[344571592,1733556640729,-1412.98,0.00015132,2]
[344571593,1733556640738,-1412.98,0.00015132,2]
[344571594,1733556640747,-1412.98,0.00015132,2]
[344571595,1733556640931,-1412.98,0.00015132,2]
[344571596,1733556640940,-1412.98,0.00015132,2]
[344571597,1733556640949,-1412.98,0.00015132,2]
[344571598,1733556640958,-1412.98,0.00015132,2]
[344571599,1733556640968,-1412.98,0.00015132,2]
[344571600,1733556640978,-1412.98,0.00015132,2]
[344571601,1733556640987,-1412.98,0.00015132,2]
[344571602,1733556640997,-1412.98,0.00015132,2]
[344571603,1733556641006,-1412.98,0.00015132,2]
[344571604,1733556641015,-1412.98,0.00015132,2]
[344571605,1733556641024,-1412.98,0.00015132,2]
[344571606,1733556641033,-1412.98,0.00015132,2]
[344571607,1733556641042,-1412.98,0.00015132,2]
[344571608,1733556641051,-1412.98,0.00015132,2]
[344571609,1733556641060,-1412.98,0.00015132,2]
[344571610,1733556641069,-1412.98,0.00015132,2]
[344571611,1733556641078,-1412.98,0.00015132,2]
[344571612,1733556641087,-1413.20649058,0.00015132,2]
[344571613,1733556641096,-500.0,0.00015132,2]
[344571614,1733556641105,-500.0,0.00015132,2]
[344571615,1733556641113,-5259.99,0.00015132,2]
[344571616,1733556641122,-5259.99,0.00015132,2]
[344571617,1733556641132,-5259.99,0.00015132,2]
[344571618,1733556641141,-5259.99,0.00015132,2]
[344571619,1733556641150,-5259.99,0.00015132,2]
[344571620,1733556641159,-5259.99,0.00015132,2]
[344571621,1733556641170,-5259.99,0.00015132,2]
[344571622,1733556641179,-5259.99,0.00015132,2]
[344571623,1733556641188,-5259.99,0.00015132,2]
[344571624,1733556641197,-2927.0294314,0.00015132,2]
[344571625,1733556641209,-2332.9605686,0.00015132,2]
[344571626,1733556641218,-710.57042453,0.00015132,2]
[344571627,1733556641230,-4019.09127962,0.00015132,2]
[344571628,1733556641240,-315.6,0.00015132,2]
[344571632,1733556643714,-1014.35254505,0.00014829,2]
[344571633,1733556643724,-22.10955833,0.00015131,2]
[344571634,1733556643776,-477.89044167,0.00015131,2]
[344571635,1733556643786,-500.0,0.00015131,2]
[344571636,1733556643797,-500.0,0.00015131,2]
[344571637,1733556643806,-214.72829585,0.00015132,2]
[344571638,1733556643816,-5259.99,0.00015132,2]
[344571639,1733556643825,-5259.99,0.00015132,2]
[344571640,1733556643834,-5259.99,0.00015132,2]
[344571641,1733556643843,-5259.99,0.00015132,2]
[344571642,1733556643852,-5259.99,0.00015132,2]
[344571643,1733556643863,-5259.99,0.00015132,2]
[344571644,1733556643872,-5259.99,0.00015132,2]
[344571645,1733556643883,-5259.99,0.00015132,2]
[344571646,1733556643893,-5259.99,0.00015132,2]
[344571647,1733556643904,-5259.99,0.00015132,2]
[344571648,1733556643914,-5259.99,0.00015132,2]
[344571649,1733556643927,-5259.99,0.00015132,2]
[344571650,1733556643937,-5260.13,0.00015132,2]
[344571651,1733556643947,-497.18,0.00015132,2]
[344571652,1733556643956,-500.0,0.00015132,2]
[344571653,1733556643967,-1014.69,0.00015132,2]
[344571654,1733556643976,-500.0,0.00015132,2]
[344571655,1733556643986,-1014.69,0.00015132,2]
[344571656,1733556643995,-500.0,0.00015132,2]
[344571657,1733556644004,-1014.69,0.00015132,2]
[344571658,1733556644013,-500.0,0.00015132,2]
[344571659,1733556644022,-1014.69,0.00015132,2]
[344571660,1733556644031,-1014.69,0.00015132,2]
[344571661,1733556644040,-500.0,0.00015132,2]
[344571662,1733556644049,-1014.69,0.00015132,2]
[344571663,1733556644058,-245.39469989,0.00015132,2]
[344571664,1733556644067,-1014.69,0.00015132,2]
[344571665,1733556644075,-1014.69,0.00015132,2]
[344571666,1733556644084,-1014.69,0.00015132,2]
[344571667,1733556644093,-1014.69,0.00015132,2]
[344571668,1733556644103,-1014.69,0.00015132,2]
[344571669,1733556644113,-1014.69,0.00015132,2]
[344571670,1733556644122,-1014.69,0.00015132,2]
[344571671,1733556644131,-404.76979051,0.00015132,2]
[344571672,1733556644141,-1014.69,0.00015132,2]
[344571673,1733556644150,-1014.69,0.00015132,2]
[344571674,1733556644159,-1014.69,0.00015132,2]
[344571675,1733556644169,-633481.52846498,0.00015133,2]
[344571676,1733556644178,-43905.50807247,0.00015133,2]
[344571677,1733556644187,-2225382.05330663,0.00015133,2]
[344571678,1733556644216,-362.71044163,0.00015132,2]
[344571679,1733556644227,-651.97955837,0.00015132,2]
[344571680,1733556644236,-26752.02044163,0.00015133,2]
[344571681,1733556644250,-4560.62096352,0.00015133,2]
[344571685,1733556645751,-1014.69,0.00015132,2]
[344571686,1733556645761,-1014.69,0.00015132,2]
[344571687,1733556645770,-1014.69,0.00015132,2]
[344571688,1733556645779,-1014.84,0.00015132,2]
[344571689,1733556645789,-39672.10499301,0.00015133,2]
[344571690,1733556645800,-1420.8,0.00015133,2]
[344571691,1733556645811,-10195.0,0.00015133,2]
[344571692,1733556645827,-3985.09999997,0.00015133,2]
[344571693,1733556646004,-482.9646066,0.00015133,2]
[344571694,1733556646166,-1680.8129661,0.00015133,2]
[344571695,1733556646179,-6601.92102967,0.00015133,2]
[344571697,1733556705214,-14000000.0,0.0002,120]
[344571698,1733556786939,-8386819.2716855,0.0002,120]
[344571720,1733557832142,-200.0,7.677e-05,2]
[344571721,1733557832152,-200.0,7.678e-05,2]
[344571722,1733557832166,-200.0,7.682e-05,2]
[344571723,1733557832178,-200.0,7.682e-05,2]
[344571724,1733557832188,-314.28000496,0.00012017,2]
[344571725,1733557832201,-270.99999504,0.00012017,2]
[344571726,1733557832211,-250.0,0.00013794,2]
[344571727,1733557832221,-135.98747214,0.00013797,2]
[344571728,1733557832232,-85.76252786,0.00013797,2]
[344571729,1733557832242,-618.18788499,0.00013798,2]
[344571730,1733557832253,-278.83952091,0.00013798,2]
[344571731,1733557832276,-102.9725941,0.00013798,2]
[344571732,1733557832285,-150.0,0.00013802,2]
[344571733,1733557832295,-150.0,0.00013803,2]
[344571734,1733557832304,-1.95002022,0.00013857,2]
[344571735,1733557832316,-198.04997978,0.00013857,2]
[344571736,1733557832325,-487.31192926,0.00013915,2]
[344571737,1733557832335,-150.0,0.00013922,2]
[344571738,1733557832344,-250.0,0.00013947,2]
[344571739,1733557832354,-500.0,0.00013953,2]
[344571740,1733557832364,-304.68,0.00014015,2]
[344571741,1733557832373,-1122.85,0.00014015,2]
[344571742,1733557832382,-29999.99,0.00014015,2]
[344571743,1733557832392,-28926.94,0.00014015,2]
[344571744,1733557832403,-14368.45,0.00014033,2]
[344571745,1733557832416,-159.98,0.00014276,2]
[344571746,1733557832425,-585.28,0.00014281,2]
[344571747,1733557832434,-150.0,0.00014294,2]
[344571748,1733557832444,-150.0,0.00014666,2]
[344571749,1733557832453,-1019.2647378,0.0001483,2]
[344571750,1733557832463,-1015.12808912,0.0001483,2]
[344571751,1733557832472,-422.3067094,0.00014913,2]
[344571752,1733557832482,-1000.0,0.0001503,2]
[344571754,1733557832491,-500.0,0.00015032,2]
[344571756,1733557832501,-500.0,0.00015032,2]
[344571758,1733557832510,-500.0,0.00015032,2]
[344571759,1733557832519,-500.0,0.00015032,2]
[344571760,1733557832528,-554.25,0.00015032,2]
[344571761,1733557832538,-500.0,0.00015032,2]
[344571762,1733557832547,-4812.21,0.00015032,2]
[344571763,1733557832556,-500.0,0.00015032,2]
[344571764,1733557832566,-500.0,0.00015032,2]
[344571765,1733557832575,-500.0,0.00015032,2]
[344571766,1733557832585,-77.31122956,0.00015032,2]
[344571768,1733557832596,-278.21782644,0.00015032,2]
[344571770,1733557832606,-5150.77,0.00015032,2]
[344571771,1733557832617,-500.0,0.00015032,2]
[344571772,1733557832627,-500.0,0.00015032,2]
[344571773,1733557832637,-601.83739378,0.00015032,2]
[344571774,1733557832646,-500.0,0.00015032,2]
[344571775,1733557832656,-500.0,0.00015032,2]
[344571776,1733557832667,-500.0,0.00015032,2]
[344571777,1733557832677,-500.0,0.00015032,2]
[344571778,1733557832686,-500.0,0.00015032,2]
[344571779,1733557832695,-500.0,0.00015032,2]
[344571780,1733557832705,-649.09,0.00015032,2]
[344571781,1733557832714,-500.0,0.00015032,2]
[344571783,1733557832724,-500.0,0.00015032,2]
[344571784,1733557832733,-500.0,0.00015032,2]
[344571785,1733557832743,-500.0,0.00015032,2]
[344571786,1733557832752,-500.0,0.00015032,2]
[344571787,1733557832763,-500.0,0.00015032,2]
[344571788,1733557832773,-486.75385624,0.00015032,2]
[344571789,1733557832782,-500.0,0.00015032,2]
[344571790,1733557832792,-500.0,0.00015032,2]
[344571791,1733557832801,-500.0,0.00015032,2]
[344571792,1733557832810,-594.68,0.00015032,2]
[344571793,1733557832820,-500.0,0.00015032,2]
[344571794,1733557832830,-500.0,0.00015032,2]
[344571795,1733557833036,-500.0,0.00015032,2]
[344571796,1733557833047,-500.0,0.00015032,2]
[344571797,1733557833057,-500.0,0.00015032,2]
[344571798,1733557833066,-500.0,0.00015032,2]
[344571799,1733557833076,-500.0,0.00015032,2]
[344571800,1733557833085,-776.35,0.00015032,2]
[344571801,1733557833095,-500.0,0.00015032,2]
[344571802,1733557833104,-500.0,0.00015032,2]
[344571803,1733557833114,-500.0,0.00015032,2]
[344571804,1733557833123,-500.0,0.00015032,2]
[344571805,1733557833132,-500.0,0.00015032,2]
[344571806,1733557833142,-500.0,0.00015032,2]
[344571807,1733557833152,-502.61183885,0.00015032,2]
[344571808,1733557833165,-500.0,0.00015032,2]
[344571809,1733557833174,-500.0,0.00015032,2]
[344571810,1733557833185,-500.0,0.00015032,2]
[344571811,1733557833195,-500.0,0.00015032,2]
[344571812,1733557833205,-1180.72,0.00015032,2]
[344571813,1733557833214,-500.0,0.00015032,2]
[344571814,1733557833224,-1607.16,0.00015032,2]
[344571815,1733557833233,-500.0,0.00015032,2]
[344571816,1733557833243,-500.0,0.00015032,2]
[344571817,1733557833253,-644.04,0.00015032,2]
[344571818,1733557833263,-500.0,0.00015032,2]
[344571819,1733557833273,-226.34461451,0.00015032,2]
[344571820,1733557833283,-500.0,0.00015032,2]
[344571821,1733557833294,-1200.0,0.00015032,2]
[344571822,1733557833304,-6227.92,0.00015032,2]
[344571823,1733557833314,-195.80240746,0.00015032,2]
[344571824,1733557833324,-500.0,0.00015032,2]
[344571825,1733557833333,-500.0,0.00015032,2]
[344571826,1733557833343,-500.0,0.00015032,2]
[344571827,1733557833352,-173.77538395,0.00015033,2]
[344571828,1733557833362,-1000.0,0.00015033,2]
[344571829,1733557833372,-1105.431,0.00015033,2]
[344571830,1733557833382,-500.0,0.00015033,2]
[344571831,1733557833392,-278.19,0.00015033,2]
[344571832,1733557833403,-500.0,0.00015033,2]
[344571833,1733557833415,-500.0,0.00015033,2]
[344571834,1733557833424,-500.0,0.00015033,2]
[344571835,1733557833434,-649.18,0.00015033,2]
[344571836,1733557833443,-720.61,0.00015033,2]
[344571837,1733557833452,-191.13,0.00015033,2]
[344571838,1733557833461,-500.0,0.00015033,2]
[344571839,1733557833471,-500.0,0.00015033,2]
[344571840,1733557833480,-500.0,0.00015033,2]
[344571841,1733557833489,-683.19,0.00015033,2]
[344571842,1733557833498,-841.51,0.00015033,2]
[344571843,1733557833507,-663.73,0.00015033,2]
[344571844,1733557833516,-850.5,0.00015033,2]
[344571845,1733557833527,-500.0,0.00015033,2]
[344571846,1733557833537,-500.0,0.00015033,2]
[344571847,1733557833547,-639.22,0.00015033,2]
[344571848,1733557833557,-500.0,0.00015033,2]
[344571849,1733557833566,-601.85,0.00015033,2]
[344571850,1733557833576,-1010.87,0.00015033,2]
[344571851,1733557833586,-500.0,0.00015033,2]
[344571852,1733557833595,-500.0,0.00015033,2]
[344571853,1733557833605,-1016.72,0.00015033,2]
[344571854,1733557833615,-1228.82,0.00015033,2]
[344571855,1733557833624,-755.28,0.00015033,2]
[344571856,1733557833635,-787.85,0.00015033,2]
[344571857,1733557833652,-744.02,0.00015033,2]
[344571858,1733557833664,-624.49,0.00015033,2]
[344571859,1733557833674,-500.0,0.00015033,2]
[344571860,1733557833684,-3286.04,0.00015033,2]
[344571861,1733557833695,-4103.04,0.00015033,2]
[344571862,1733557833705,-919.8,0.00015033,2]
[344571863,1733557833715,-1385.36,0.00015033,2]
[344571864,1733557833725,-500.0,0.00015033,2]
[344571865,1733557833735,-1897.24,0.00015033,2]
[344571866,1733557833745,-944.9,0.00015033,2]
[344571867,1733557833755,-757.14,0.00015033,2]
[344571868,1733557833765,-903.75,0.00015033,2]
[344571869,1733557833776,-1800.36,0.00015033,2]
[344571870,1733557833786,-500.0,0.00015033,2]
[344571871,1733557833796,-1245.0,0.00015033,2]
[344571872,1733557833806,-500.0,0.00015033,2]
[344571873,1733557833815,-500.0,0.00015033,2]
[344571874,1733557833825,-820.23,0.00015033,2]
[344571875,1733557833834,-500.0,0.00015033,2]
[344571876,1733557833844,-989.29,0.00015033,2]
[344571877,1733557833854,-500.0,0.00015033,2]
[344571878,1733557833864,-500.0,0.00015033,2]
[344571879,1733557833874,-500.0,0.00015033,2]
[344571880,1733557833884,-1345.37,0.00015033,2]
[344571881,1733557833894,-500.0,0.00015033,2]
[344571882,1733557833903,-647.49,0.00015033,2]
[344571883,1733557833916,-748.26,0.00015033,2]
[344571884,1733557833926,-500.0,0.00015033,2]
[344571885,1733557833936,-776.65,0.00015033,2]
[344571886,1733557833949,-799.88,0.00015033,2]
[344571887,1733557833959,-713.24,0.00015033,2]
[344571888,1733557833969,-590.91,0.00015033,2]
[344571889,1733557833978,-1000.0,0.00015033,2]
[344571890,1733557833989,-500.0,0.00015033,2]
[344571891,1733557833999,-1824.94,0.00015033,2]
[344571892,1733557834009,-500.0,0.00015033,2]
[344571893,1733557834018,-500.0,0.00015033,2]
[344571894,1733557834029,-872.31,0.00015033,2]
[344571895,1733557834039,-500.0,0.00015033,2]
[344571896,1733557834048,-500.0,0.00015033,2]
[344571897,1733557834057,-628.52695526,0.00015033,2]
[344571898,1733557834067,-653.27,0.00015033,2]
[344571899,1733557834076,-685.59,0.00015033,2]
[344571900,1733557834085,-500.0,0.00015033,2]
[344571901,1733557834095,-596.0,0.00015033,2]
[344571902,1733557834104,-3049.19166695,0.00015033,2]
[344571903,1733557834113,-607.06,0.00015033,2]
[344571904,1733557834123,-500.0,0.00015033,2]
[344571905,1733557834132,-500.0,0.00015033,2]
[344571906,1733557834142,-500.0,0.00015033,2]
[344571907,1733557834151,-725.88,0.00015033,2]
[344571908,1733557834161,-503.47,0.00015033,2]
[344571909,1733557834171,-150.0,0.00015038,2]
[344571910,1733557834180,-251.63334217,0.000151,2]
[344571911,1733557834190,-4999.96000101,0.0001513,2]
[344571912,1733557834200,-1626.14,0.0001513,2]
[344571913,1733557834210,-1702.42,0.0001513,2]
[344571914,1733557834220,-1058.33,0.0001513,2]
[344571915,1733557834230,-794.56,0.0001513,2]
[344571916,1733557834240,-1259.03,0.0001513,2]
[344571917,1733557834250,-960.48,0.0001513,2]
[344571918,1733557834260,-1409.08,0.0001513,2]
[344571919,1733557834270,-909.46,0.0001513,2]
[344571920,1733557834280,-1541.47,0.0001513,2]
[344571921,1733557834290,-2110.86,0.0001513,2]
[344571922,1733557834300,-1335.91,0.0001513,2]
[344571923,1733557834310,-500.0,0.0001513,2]
[344571924,1733557834320,-1600.02,0.0001513,2]
[344571925,1733557834330,-1705.83,0.0001513,2]
[344571926,1733557834340,-500.0,0.0001513,2]
[344571927,1733557834349,-762.17,0.0001513,2]
[344571928,1733557834359,-500.0,0.0001513,2]
[344571929,1733557834369,-500.0,0.0001513,2]
[344571930,1733557834379,-780.67,0.0001513,2]
[344571931,1733557834388,-1715.16,0.0001513,2]
[344571932,1733557834398,-500.0,0.00015131,2]
[344571933,1733557834412,-272.10045838,0.00015131,2]
[344571934,1733557834422,-500.0,0.00015131,2]
[344571935,1733557834431,-500.0,0.00015131,2]
[344571936,1733557834441,-500.0,0.00015131,2]
[344571937,1733557834451,-500.0,0.00015131,2]
[344571938,1733557834461,-500.0,0.00015131,2]
[344571939,1733557834471,-500.0,0.00015131,2]
[344571940,1733557834480,-500.0,0.00015131,2]
[344571941,1733557834490,-500.0,0.00015131,2]
[344571942,1733557834499,-500.0,0.00015131,2]
[344571943,1733557834509,-500.0,0.00015131,2]
[344571944,1733557834518,-500.0,0.00015131,2]
[344571945,1733557834528,-500.0,0.00015131,2]
[344571946,1733557834537,-500.0,0.00015131,2]